Expenditure Date,Department,Beneficiary,Amount (�),Summary of purpose of expenditure,Description,Merchant Category
19/04/2019,Surestart/Action for Children,Amazon.co.,20.71,Standard Equipment,Amazon.co.uk*MZ4NB1S54,Direct Sal,192001,0100020136,HA01,4.14
03/04/2019,National Procurement Project,MCDONALDS,3.30,Catering Refreshments Admin,MCDONALDS,Fast Food,192001,0100020167,FE76,0.69
04/04/2019,National Procurement Project,WELCOME BR,3.35,Subsistence Admin/Manage,WELCOME BREAK STARBUCK,Misc Food,192001,0100020168,FE75,0.70
04/04/2019,National Procurement Project,WELCOME BR,3.31,Subsistence Admin/Manage,WELCOME BREAK STARBUCK,Misc Food,192001,0100020169,FE75,0.69
04/04/2019,National Procurement Project,MCDONALDS,5.53,Catering Refreshments Admin,MCDONALDS,Fast Food,192001,0100020170,FE76,1.16
08/04/2019,ESMCP (Reserve funding),FRESHA LTD,119.70,Catering Refreshments Admin,FRESHA LTD,Caterers,192001,0100020123,FE76,23.94
02/04/2019,Stock,WWW.CAMLOC,273.72,Uniforms Purchase,WWW.CAMLOCK.COM,Timber & B,192001,0100020247,ZC40,57.48
10/04/2019,Stock,SAILBOATS.,296.69,Ops Equipment Purchases,SAILBOATS.CO.UK,"Marinas, S",192001,0100020218,ZC50,62.31
10/04/2019,Stock,Amazon.co.,72.73,Ops Equipment Purchases,Amazon.co.uk*MZ9C90VB4,Direct Sal,192001,0100020219,ZC50,14.55
23/04/2019,Stock,SAFETYSIGN,28.40,Uniforms Purchase,SAFETYSIGNS,Advertisin,192001,0100020248,ZC40,5.97
23/04/2019,Stock,Amazon.co.,65.74,Ops Equipment Purchases,Amazon.co.uk*MZ7M709W4,Direct Sal,192001,0100020220,ZC50,13.16
25/04/2019,Stock,AMZN MKTP,48.35,Uniforms Purchase,AMZN MKTP UK*MZ24Q6II4 AM,Book Store,192001,0100020249,ZC40,10.15
02/04/2019,ICT Delivery,SCREWFIX D,108.33,ICT Desktop Service,SCREWFIX DIRECT,Home Suppl,192001,0100020302,HA20,21.66
09/04/2019,ICT Delivery,Amazon.co.,32.16,Standard Equipment,Amazon.co.uk*MZ50K4X64,Direct Sal,192001,0100020303,HA01,6.40
09/04/2019,ICT Delivery,AMZNMKTPLA,166.56,ICT Mobs Service Equipment,AMZNMKTPLACE AMAZON.CO.UK,Misc. Spec,192001,0100020304,HF20,33.36
09/04/2019,ICT Delivery,MANX TELEC,83.30,ICT Mobile Telephony Service,MANX TELECOM April,Phone Serv,192001,0100020266,HF29,16.66
12/04/2019,ICT Delivery,PREMIER FA,304.00,ICT Desktop Service,PREMIER FARNELL,Electrical,192001,0100020305,HA20,60.80
14/04/2019,ICT Delivery,AMZN Mktp,39.47,ICT Desktop Service,AMZN Mktp UK*MZ8XO9584,Book Store,192001,0100020306,HA20,1.50
16/04/2019,ICT Delivery,LYRECO UK,97.00,Printing/Stationery/Photocopy,RM500 LYRECO BUDGET PAPER A4 80G WH,Stationery,192001,0100020189,JA01,19.40
17/04/2019,ICT Delivery,AMAZON.CO.,25.59,ICT Mobile Data Terminal Servi,SD cards for TomTom bridge devices,Misc. Spec,192001,0100020267,HA30,5.12
18/04/2019,ICT Delivery,PREMIER FA,238.48,ICT Desktop Service,PREMIER FARNELL,Electrical,192001,0100020307,HA20,47.70
18/04/2019,ICT Delivery,FASTHOSTS,5.28,ICT Infrastructure Service,PHP Support,Computer N,192001,0100020268,HA24,1.06
23/04/2019,ICT Delivery,FASTHOSTS,58.95,ICT Infrastructure Service,Safesouthwest domain renewal,Computer N,192001,0100020269,HA24,11.79
26/04/2019,ICT Delivery,HOSTEK LIM,86.30,ICT Infrastructure Service,HOSTEK LIMITED,Computer N,192001,0100020538,HA24,17.26
26/04/2019,ICT Delivery,RS COMPONE,46.44,ICT Mobs Service Equipment,"Switching Regulator,12-32Vin,9Vout 1A",Electrical,192001,0100020605,HF20,9.28
26/04/2019,ICT Delivery,RS COMPONE,31.98,ICT Mobs Service Equipment,"Switching Regulator,15-36Vin,12Vout 1A",Electrical,192001,0100020605,HF20,6.40
26/04/2019,ICT Delivery,AMZNMKTPLA,14.92,ICT Mobile Telephony Service,2x Motorola One screen protectors,Misc. Spec,192001,0100020537,HF29,0.00
26/04/2019,ICT Delivery,AMZNMktpla,3.66,ICT Mobile Telephony Service,2-pack Micro USB cable,Misc. Spec,192001,0100020532,HF29,0.73
26/04/2019,ICT Delivery,AMZNMktpla,3.66,ICT Mobile Telephony Service,2-pack Micro USB cable,Misc. Spec,192001,0100020533,HF29,0.73
26/04/2019,ICT Delivery,AMZNMktpla,3.66,ICT Mobile Telephony Service,2-pack Micro USB cable,Misc. Spec,192001,0100020534,HF29,0.73
26/04/2019,ICT Delivery,AMZNMktpla,3.66,ICT Mobile Telephony Service,2-pack Micro USB cable,Misc. Spec,192001,0100020535,HF29,0.73
26/04/2019,ICT Delivery,AMZNMktpla,3.66,ICT Mobile Telephony Service,2-pack Micro USB cable,Misc. Spec,192001,0100020536,HF29,0.73
26/04/2019,ICT Delivery,LYRECO UK,89.00,Printing/Stationery/Photocopy,RM500 LYRECO BUDGET PAPER A4 75G WH,Stationery,192001,0100020436,JA01,17.80
28/04/2019,ICT Delivery,FASTHOSTS,4.79,ICT Infrastructure Service,Safesouthwest,Computer N,192001,0100020539,HA24,0.96
29/04/2019,ICT Delivery,DNH*GODADD,212.48,ICT Infrastructure Service,Bluelight Workbench domains,Computer N,192001,0100020541,HA24,0.00
29/04/2019,ICT Delivery,THREE-BILL,266.48,ICT Mobile Telephony Service,3 Bill April,Phone Serv,192001,0100020540,HF29,53.30
02/04/2019,Estates,TOOLSTATIO,7.87,Unforseen Maintnce Mats Techn,TOOLSTATION LTD,Hardware S,192001,0100020348,DA12,1.57
04/04/2019,Estates,SPILLER,17.59,Unforseen Maintnce Mats Techn,Maintenance,Metal Prod,192001,0100020212,DA12,3.52
05/04/2019,Estates,PAULLS OF,27.03,Standard Equipment,PAULLS OF MARTOCK,Timber & B,192001,0100020286,HA01,5.41
12/04/2019,Estates,WORKWEAR E,40.35,Workwear,WORKWEAR EXPRESS LTD,Uniforms &,192001,0100020353,HG03,8.07
12/04/2019,Estates,TREDDERS Q,40.45,Workwear,TREDDERS QUALITY FOOTW,Shoe Shops,192001,0100020354,HG03,7.49
15/04/2019,Estates,IRONMONGER,349.95,Unforseen Maintnce Mats Techn,IRONMONGERY DIRECT LTD,"Glass, Pai",192001,0100020322,DA12,69.99
15/04/2019,Estates,HALFORDS 0,6.67,Standard Equipment,HALFORDS 0520,Bicycle Sh,192001,0100020244,HA01,1.33
16/04/2019,Estates,SCREWFIX P,10.99,Standard Equipment,SCREWFIX PLYMOUTH VALLEY,Timber & B,192001,0100020356,HA01,0.00
18/04/2019,Estates,SCREWFIX S,9.16,Standard Equipment,SCREWFIX SHEPTON MALLET,Timber & B,192001,0100020214,HA01,1.83
18/04/2019,Estates,MOLE VALLE,9.91,Standard Equipment,MOLE VALLEY FARMERS,Timber & B,192001,0100020245,HA01,1.98
24/04/2019,Estates,WWW.IRONMO,29.95,Unforseen Maintnce Mats Techn,WWW.IRONMONGERYDIRECT.,"Glass, Pai",192001,0100020153,DA12,5.99
25/04/2019,Estates,AMZN MKTP,130.83,Standard Equipment,AMZN MKTP UK*MZ0H93UY4 AM,Book Store,192001,0100020326,HA01,26.17
25/04/2019,Estates,MEDLAND SA,30.00,Standard Equipment,MEDLAND SANDERS & TWOS,Misc. Auto,192001,0100020246,HA01,6.00
26/04/2019,Estates,EXETER TOO,61.13,Standard Equipment,EXETER TOOL SHOP LIMITED,"Glass, Pai",192001,0100020482,HA01,12.23
18/04/2019,Fire Headquarters,RAPID RACK,156.00,Unforseen Maintnce Mats Techn,RAPID RACKING,Furniture,192001,0100020323,DA12,31.20
24/04/2019,Fire Headquarters,NBBMATTING,23.65,Unforseen Maintnce Mats Techn,NBBMATTING.CO.UK,Misc Durab,192001,0100020325,DA12,4.73
08/04/2019,Operational Assets Management,TEXMOLEAVO,19.39,Fuel (Petrol Etc),ADBLU and SCREENWASH,Service St,192001,0100020124,FC01,1.08
24/04/2019,Operational Assets Management,THRIFTY CA,32.71,Fuel (Petrol Etc),FUEL CHARGE,Thrify Ren,192001,0100020264,FC01,6.54
30/04/2019,Operational Assets Management,NEC CAR PA,16.00,Subsistence Uniformed,NEC CAR PARKS,Car Parkin,192001,0100020663,FD75,0.00
24/04/2019,Light Vehicle Management,THRIFTY CA,687.32,Hired Transport,Various - Feb 19 hires,Thrify Ren,192001,0100020258,FD01,144.34
03/04/2019,Chelston Vehicle Engineering,PARTS PLUS,401.50,Direct Replacmnt Parts-Defects,PARTS PLUS,Automotive,192001,0100020141,FA14,0.00
11/04/2019,Chelston Vehicle Engineering,POST OFFIC,8.70,BA Equipment Purchase,POST OFFICE COUNTER,Postage St,192001,0100020171,HB01,0.00
12/04/2019,Crownhill Vehicle Engineering,LYRECO UK,9.95,Printing/Stationery/Photocopy,RM500 LYRECO PAPER A4 80G WH,Stationery,192001,0100020187,JA01,1.99
12/04/2019,Crownhill Vehicle Engineering,LYRECO UK,0.14,Printing/Stationery/Photocopy,LYRECO PLASTIC ERASER,Stationery,192001,0100020187,JA01,0.03
12/04/2019,Crownhill Vehicle Engineering,LYRECO UK,1.54,Printing/Stationery/Photocopy,TIPP-EX SHAKE N'SQUEEZE CORRECT PEN 8ML,Stationery,192001,0100020187,JA01,0.31
12/04/2019,Crownhill Vehicle Engineering,LYRECO UK,1.13,Printing/Stationery/Photocopy,BX750 EXACOMPTA DRAWING PINS BRASS,Stationery,192001,0100020187,JA01,0.22
16/04/2019,Crownhill Vehicle Engineering,SP * FIRST,82.74,Standard Equipment,SP * FIRST MATS LTD,Computer S,192001,0100020359,HA01,0.00
16/04/2019,Crownhill Vehicle Engineering,C & L MAIL,167.40,Hazmat Equipment,C & L MAIL ORDER LTD,"Watch, Clo",192001,0100020360,HC07,33.48
19/04/2019,Crownhill Vehicle Engineering,AMZN Mktp,1.81,Printing/Stationery/Photocopy,AMZN Mktp UK*MZ58L5DB4,Book Store,192001,0100020361,JA01,0.36
24/04/2019,Crownhill Vehicle Engineering,XMA LTD,55.04,Print Consumables,HP 203A ORIGINAL YELLOW LASERJET TON,Programmin,192001,0100020207,JA02,11.01
24/04/2019,Crownhill Vehicle Engineering,XMA LTD,46.69,Print Consumables,HP 203A ORIGINAL BLACK LASERJET TONE,Programmin,192001,0100020207,JA02,9.34
25/04/2019,Crownhill Vehicle Engineering,FORCE 4,83.29,Direct Replacmnt Parts-Defects,FORCE 4,"Marinas, S",192001,0100020362,FA14,16.66
29/04/2019,Crownhill Vehicle Engineering,SP * FIRST,28.90,Standard Equipment,SP * FIRST MATS LTD,Computer S,192001,0100020668,HA01,5.78
30/04/2019,Crownhill Vehicle Engineering,WWW.MACKEN,159.52,Direct Replacmnt Parts-Defects,WWW.MACKENGINEERING.CO,Misc Indus,192001,0100020573,FA14,20.00
30/04/2019,Crownhill Vehicle Engineering,AMZNMktpla,13.08,Standard Equipment,AMZNMktplace,Misc. Spec,192001,0100020669,HA01,1.98
26/04/2019,Insurance & Risk,TIVERTION,6.90,Subsistence Uniformed,TIVERTION STN,Car Parkin,192001,0100020398,FD75,0.00
26/04/2019,Insurance & Risk,HOC CRS,13.59,Catering/Refreshments,HOC CRS,Restaurant,192001,0100020399,FD76,0.00
26/04/2019,Insurance & Risk,ZIZZI VICT,73.15,Catering/Refreshments,ZIZZI VICTORIA,Restaurant,192001,0100020400,FD76,0.00
02/04/2019,Democratic Services,LYRECO UK,6.97,Printing/Stationery/Photocopy,DYMO 45013 D1 TAPE 12MMX7M BLK/WH,Stationery,192001,0100020172,JA01,1.39
02/04/2019,Democratic Services,LYRECO UK,4.11,Printing/Stationery/Photocopy,PK 50 VISITOR BOOK REFILL SHEETS,Stationery,192001,0100020172,JA01,0.83
02/04/2019,Democratic Services,LYRECO UK,29.80,Printing/Stationery/Photocopy,BLACK N'RED NOTEBOOK 192SHT RULED A4,Stationery,192001,0100020172,JA01,5.96
02/04/2019,Democratic Services,LYRECO UK,3.54,Printing/Stationery/Photocopy,LYRECO SHORTHAND NOTEBOOK 200S 56G,Stationery,192001,0100020172,JA01,0.70
09/04/2019,Democratic Services,LYRECO UK,24.96,Printing/Stationery/Photocopy,PUKKA PADS PROBA4 PROJ BOOK A4  RUL BLU,Stationery,192001,0100020183,JA01,4.99
09/04/2019,Democratic Services,LYRECO UK,3.12,Printing/Stationery/Photocopy,LYRECO PREMIUM SOFT BALL PEN MEDIUM BLK,Stationery,192001,0100020183,JA01,0.62
09/04/2019,Democratic Services,LYRECO UK,1.32,Printing/Stationery/Photocopy,LYRECO GEL INK PEN 0.7MM RED,Stationery,192001,0100020183,JA01,0.27
09/04/2019,Democratic Services,LYRECO UK,1.08,Printing/Stationery/Photocopy,LYRECO GEL INK PEN 0.7MM BLK,Stationery,192001,0100020183,JA01,0.21
24/04/2019,Democratic Services,TRAINLINE,130.50,Rail Fares - Uniformed,TRAINLINE,Passenger,192001,0100020152,FD65,0.00
24/04/2019,Democratic Services,LYRECO UK,3.53,Printing/Stationery/Photocopy,TIPP-EX EASY REFILL CORRE ROLLER 5MMX14M,Stationery,192001,0100020198,JA01,0.71
24/04/2019,Democratic Services,LYRECO UK,24.96,Printing/Stationery/Photocopy,PUKKA PADS PROBA4 PROJ BOOK A4  RUL BLU,Stationery,192001,0100020198,JA01,4.99
24/04/2019,Democratic Services,LYRECO UK,20.85,Printing/Stationery/Photocopy,BLACKNRED J66076 SMART N/BK RUL PERF A5+,Stationery,192001,0100020198,JA01,4.17
25/04/2019,Democratic Services,APCOA CONN,6.30,Subsistence Uniformed,APCOA CONNECT - FGW,Car Parkin,192001,0100020151,FD75,0.00
30/04/2019,Democratic Services,LYRECO UK,10.33,Printing/Stationery/Photocopy,BX1000 JUSTEAU JCUP 7OZ PLASTIC CUPS,Stationery,192001,0100020438,JA01,2.07
30/04/2019,Democratic Services,LYRECO UK,4.33,Printing/Stationery/Photocopy,PK6 LYRECO NONOISE PACKTAPE PP 50X66 BRW,Stationery,192001,0100020438,JA01,0.87
30/04/2019,Democratic Services,LYRECO UK,1.09,Printing/Stationery/Photocopy,LYRECO WHITEBOARD CLEANING FOAM 400ML,Stationery,192001,0100020438,JA01,0.21
30/04/2019,Democratic Services,LYRECO UK,39.44,Printing/Stationery/Photocopy,LACQUER W/BOARD 120X180CM,Stationery,192001,0100020438,JA01,7.89
08/04/2019,Senior Management Team,APCOA CONN,12.80,Subsistence Uniformed,APCOA CONNECT - FGW,Car Parkin,192001,0100020142,FD75,0.00
10/04/2019,Senior Management Team,APCOA CONN,6.50,Subsistence Uniformed,APCOA CONNECT - FGW,Car Parkin,192001,0100020143,FD75,0.00
10/04/2019,Procurement,SOUTH GLOU,4.02,Catering Refreshments Admin,SOUTH GLOUCESTERSHIRE,Fast Food,192001,0100020275,FE76,0.00
10/04/2019,Procurement,SOUTH GLOU,2.47,Catering Refreshments Admin,SOUTH GLOUCESTERSHIRE,Fast Food,192001,0100020276,FE76,0.00
23/04/2019,Procurement,DOUBLETREE,14.50,Hotel Booking,DOUBLETREE BY HILTON E,"Hotels, Mo",192001,0100020120,FD77,0.00
24/04/2019,Procurement,HESTON S/W,10.21,Catering/Refreshments,HESTON S/W COSTA,Restaurant,192001,0100020119,FD76,0.87
24/04/2019,Procurement,SOUTH GLOU,4.02,Catering Refreshments Admin,SOUTH GLOUCESTERSHIRE,Fast Food,192001,0100020278,FE76,0.00
24/04/2019,Procurement,SOUTH GLOU,2.47,Catering Refreshments Admin,SOUTH GLOUCESTERSHIRE,Fast Food,192001,0100020279,FE76,0.00
25/04/2019,Procurement,WWW.CIPS.O,78.00,Corporate Membership/Subscript,WWW.CIPS.ORG,Membership,192001,0100020280,HJ08,0.00
19/04/2019,Chelston Stores,LYRECO UK,39.44,Standard Equipment,LACQUER W/BOARD 120X180CM,Stationery,192001,0100020194,HA01,7.89
19/04/2019,Chelston Stores,LYRECO UK,2.00,Printing/Stationery/Photocopy,LYRECO WHITEBOARD MARKER B/TIP GREEN,Stationery,192001,0100020194,JA01,0.40
19/04/2019,Chelston Stores,LYRECO UK,2.10,Printing/Stationery/Photocopy,LYRECO WHITEBOARD MARKER B/TIP RED,Stationery,192001,0100020194,JA01,0.42
19/04/2019,Chelston Stores,LYRECO UK,2.10,Printing/Stationery/Photocopy,LYRECO WHITEBOARD MARKER B/TIP BLUE,Stationery,192001,0100020194,JA01,0.42
19/04/2019,Chelston Stores,LYRECO UK,1.80,Printing/Stationery/Photocopy,LYRECO WHITEBOARD MARKER B/TIP BLACK,Stationery,192001,0100020194,JA01,0.36
19/04/2019,Chelston Stores,LYRECO UK,0.67,Printing/Stationery/Photocopy,LYRECO WHITEBOARD CLEANING FLUID 250ML,Stationery,192001,0100020194,JA01,0.13
19/04/2019,Chelston Stores,LYRECO UK,4.03,Printing/Stationery/Photocopy,BOARD ERASER MAGN MOUSE SHAPE BLK/SILV,Stationery,192001,0100020194,JA01,0.81
12/04/2019,Public Relations,HAVILLS EX,181.03,Partnerships,HAVILLS EXHIBITIONS LTD,Misc Comme,192001,0100020277,HJ03,0.00
18/04/2019,Public Relations,ADOBE  PRO,8.42,ICT Application Services (Oth),ADOBE  PRODUCTS,Computer S,192001,0100020242,HA22,1.68
21/04/2019,Public Relations,ADOBE  PR,16.64,ICT Application Services (Oth),ADOBE  PR CREATIVE CLD,Computer S,192001,0100020243,HA22,3.33
26/04/2019,Public Relations,dotmailer,960.00,Corporate Membership/Subscript,dotmailer,Digital Ma,192001,0100020492,HJ08,0.00
28/04/2019,Public Relations,AMZNMktpla,13.98,Standard Equipment,AMZNMktplace,Misc. Spec,192001,0100020493,HA01,0.00
12/04/2019,CONSULTATION,LYRECO UK,117.52,Printing/Stationery/Photocopy,MAGIBOARDS SENIOR TABLE TOP DISPLAYBOARD,Stationery,192001,0100020188,JA01,23.51
02/04/2019,Barnstaple Group,XMA LTD,19.50,Print Consumables,16GB CLASS 4 SD CARD,Programmin,192001,0100020203,JA02,3.90
05/04/2019,Barnstaple Group,LYRECO UK,5.19,Printing/Stationery/Photocopy,PK250 LYRECO ENV C4 100G S/S WH,Stationery,192001,0100020181,JA01,1.04
05/04/2019,Barnstaple Group,LYRECO UK,5.46,Printing/Stationery/Photocopy,PK500 LYRECO ENV DL 100G P/S WH,Stationery,192001,0100020181,JA01,1.09
05/04/2019,Barnstaple Group,LYRECO UK,3.18,Printing/Stationery/Photocopy,LYRECO 4HOLE PUNCH 15SHT BLACK,Stationery,192001,0100020181,JA01,0.63
05/04/2019,Barnstaple Group,LYRECO UK,18.14,Printing/Stationery/Photocopy,LYRECO HD200 HEAVY-DUTY STAPLER BLACK,Stationery,192001,0100020181,JA01,3.63
05/04/2019,Barnstaple Group,LYRECO UK,0.85,Printing/Stationery/Photocopy,BX1000 LYRECO STANDARD 23/17 STAPLES,Stationery,192001,0100020181,JA01,0.17
11/04/2019,Barnstaple Group,BOOKER LIM,88.91,Wholetime Fireground Feeding,BOOKER LIMITED BARNSTAPLE,Caterers,192001,0100020209,FD58,17.78
16/04/2019,Barnstaple Group,LYRECO UK,17.80,Printing/Stationery/Photocopy,RM500 LYRECO BUDGET PAPER A4 75G WH,Stationery,192001,0100020190,JA01,3.56
16/04/2019,Barnstaple Group,LYRECO UK,1.35,Printing/Stationery/Photocopy,PK RUBBER BANDS NO.38 1LB 6 LONG,Stationery,192001,0100020190,JA01,0.27
16/04/2019,Barnstaple Group,LYRECO UK,0.50,Printing/Stationery/Photocopy,LYRECO BUDGET SCISSORS PLAST SYM 17CM,Stationery,192001,0100020190,JA01,0.10
16/04/2019,Barnstaple Group,LYRECO UK,11.64,Printing/Stationery/Photocopy,PUKKA POCK NOTEBK 130X85MM RULEDSILV/BLK,Stationery,192001,0100020190,JA01,2.32
16/04/2019,Barnstaple Group,LYRECO UK,1.92,Printing/Stationery/Photocopy,BX6 LYRECO MAGNETS ROUND 27MM BLU,Stationery,192001,0100020190,JA01,0.39
16/04/2019,Barnstaple Group,LYRECO UK,1.92,Printing/Stationery/Photocopy,BX6 LYRECO MAGNETS ROUND 27MM RED,Stationery,192001,0100020190,JA01,0.38
24/04/2019,Barnstaple Group,WWW.PARKMO,3.20,Subsistence Uniformed,WWW.PARKMOBILE.COM,Car Parkin,192001,0100020240,FD75,0.00
25/04/2019,Barnstaple Group,TESCO STOR,5.11,Standard Equipment,TESCO STORES 6269,Grocery St,192001,0100020241,HA01,0.00
29/04/2019,Barnstaple Group,XMA LTD,53.94,Print Consumables,HP BLACK CONTRACT  ORIGINAL LASERJET,Programmin,192001,0100020473,JA02,10.79
17/04/2019,Barnstaple,TAYLOR,19.50,Unforseen Maintnce Mats Techn,FASTENER 01,Hardware S,192001,0100020213,DA12,3.90
24/04/2019,Barnstaple,THRIFTY CA,168.48,Hired Transport,Hired Transport,Thrify Ren,192001,0100020264,FD01,33.70
24/04/2019,Barnstaple,THRIFTY CA,22.14,Hired Transport,Hired Transport,Thrify Ren,192001,0100020264,FD01,4.43
24/04/2019,Barnstaple,THRIFTY CA,44.28,Hired Transport,Hired Transport,Thrify Ren,192001,0100020264,FD01,8.86
24/04/2019,Barnstaple,THRIFTY CA,44.28,Hired Transport,Hired Transport,Thrify Ren,192001,0100020264,FD01,8.86
24/04/2019,Barnstaple,THRIFTY CA,224.64,Hired Transport,Hired Transport,Thrify Ren,192001,0100020264,FD01,44.93
24/04/2019,Braunton,THRIFTY CA,50.58,Hired Transport,Hired Transport,Thrify Ren,192001,0100020264,FD01,10.12
24/04/2019,Combe Martin,THRIFTY CA,44.28,Hired Transport,Hired Transport,Thrify Ren,192001,0100020264,FD01,8.86
24/04/2019,Combe Martin,THRIFTY CA,84.30,Hired Transport,Hired Transport,Thrify Ren,192001,0100020264,FD01,16.86
24/04/2019,Lynton,THRIFTY CA,50.58,Hired Transport,Hired Transport,Thrify Ren,192001,0100020264,FD01,10.12
24/04/2019,Lynton,THRIFTY CA,22.14,Hired Transport,Hired Transport,Thrify Ren,192001,0100020264,FD01,4.43
24/04/2019,Lynton,THRIFTY CA,22.14,Hired Transport,Hired Transport,Thrify Ren,192001,0100020264,FD01,4.43
24/04/2019,Lynton,THRIFTY CA,22.14,Hired Transport,Hired Transport,Thrify Ren,192001,0100020264,FD01,4.43
24/04/2019,Lynton,THRIFTY CA,22.14,Hired Transport,Hired Transport,Thrify Ren,192001,0100020264,FD01,4.43
24/04/2019,South Molton,THRIFTY CA,22.14,Hired Transport,Hired Transport,Thrify Ren,192001,0100020264,FD01,4.43
24/04/2019,South Molton,THRIFTY CA,25.64,Hired Transport,Hired Transport,Thrify Ren,192001,0100020264,FD01,5.13
24/04/2019,South Molton,THRIFTY CA,22.14,Hired Transport,Hired Transport,Thrify Ren,192001,0100020264,FD01,4.43
24/04/2019,Woolacombe,THRIFTY CA,22.14,Hired Transport,Hired Transport,Thrify Ren,192001,0100020264,FD01,4.43
24/04/2019,Hartland,THRIFTY CA,22.14,Hired Transport,Hired Transport,Thrify Ren,192001,0100020264,FD01,4.43
24/04/2019,Hartland,THRIFTY CA,44.28,Hired Transport,Hired Transport,Thrify Ren,192001,0100020263,FD01,8.86
24/04/2019,Hartland,THRIFTY CA,44.28,Hired Transport,Hired Transport,Thrify Ren,192001,0100020263,FD01,8.86
24/04/2019,Hartland,THRIFTY CA,22.14,Hired Transport,Hired Transport,Thrify Ren,192001,0100020263,FD01,4.43
24/04/2019,Hatherleigh,THRIFTY CA,22.14,Hired Transport,Hired Transport,Thrify Ren,192001,0100020263,FD01,4.43
24/04/2019,Hatherleigh,THRIFTY CA,44.28,Hired Transport,Hired Transport,Thrify Ren,192001,0100020263,FD01,8.86
24/04/2019,Torrington,THRIFTY CA,22.14,Hired Transport,Hired Transport,Thrify Ren,192001,0100020263,FD01,4.43
08/04/2019,Exeter Group,POST OFFIC,61.00,Postages,POST OFFICE COUNTER,Postage St,192001,0100020299,JA05,0.00
11/04/2019,Exeter Group,LAND REGIS,6.00,Consultation Fees,LAND REGISTRY,Government,192001,0100020300,JA30,0.00
18/04/2019,Exeter Group,LYRECO UK,37.74,Standard Equipment,FELLOWES SPECTRA A3 LAMINATING MACHINE,Stationery,192001,0100020193,HA01,7.55
24/04/2019,Exeter Group,THRIFTY CA,25.64,Hired Transport,Hired Transport,Thrify Ren,192001,0100020259,FD01,5.13
24/04/2019,Exeter Group,THRIFTY CA,25.64,Hired Transport,Hired Transport,Thrify Ren,192001,0100020259,FD01,5.13
24/04/2019,Exeter Group,THRIFTY CA,25.64,Hired Transport,Hired Transport,Thrify Ren,192001,0100020259,FD01,5.13
24/04/2019,Exeter Group,THRIFTY CA,25.64,Hired Transport,Hired Transport,Thrify Ren,192001,0100020259,FD01,5.13
24/04/2019,Exeter Group,THRIFTY CA,25.64,Hired Transport,Hired Transport,Thrify Ren,192001,0100020259,FD01,5.13
24/04/2019,Exeter Group,THRIFTY CA,25.64,Hired Transport,Hired Transport,Thrify Ren,192001,0100020259,FD01,5.13
24/04/2019,Exeter Group,THRIFTY CA,83.04,Hired Transport,Hired Transport,Thrify Ren,192001,0100020259,FD01,16.61
24/04/2019,North Tawton,THRIFTY CA,22.14,Hired Transport,Hired Transport,Thrify Ren,192001,0100020263,FD01,4.43
24/04/2019,Okehampton,THRIFTY CA,22.14,Hired Transport,Hired Transport,Thrify Ren,192001,0100020263,FD01,4.43
24/04/2019,Okehampton,XMA LTD,28.16,Print Consumables,HP 953XL HIGH YIELD BLACK ORIGINAL I,Programmin,192001,0100020208,JA02,5.63
24/04/2019,Okehampton,XMA LTD,19.18,Print Consumables,HP 953XL HIGH YIELD CYAN ORIGINAL IN,Programmin,192001,0100020208,JA02,3.84
24/04/2019,Okehampton,XMA LTD,19.18,Print Consumables,HP 953XL HIGH YIELD MAGENTA ORIGINAL,Programmin,192001,0100020208,JA02,3.84
24/04/2019,Okehampton,XMA LTD,19.18,Print Consumables,HP 953XL HIGH YIELD YELLOW ORIGINAL,Programmin,192001,0100020208,JA02,3.84
12/04/2019,Danes Castle,APPLIANCE,78.75,Standard Equipment,APPLIANCE FIX,Small Appl,192001,0100020121,HA01,0.00
24/04/2019,Cullompton,THRIFTY CA,44.28,Hired Transport,Hired Transport,Thrify Ren,192001,0100020264,FD01,8.86
24/04/2019,Cullompton,THRIFTY CA,22.14,Hired Transport,Hired Transport,Thrify Ren,192001,0100020264,FD01,4.43
24/04/2019,Cullompton,THRIFTY CA,84.30,Hired Transport,Hired Transport,Thrify Ren,192001,0100020264,FD01,16.86
26/04/2019,Cullompton,XMA LTD,32.24,Print Consumables,78A BLACK LASERJET CONTRACT TON CART,Programmin,192001,0100020469,JA02,6.45
10/04/2019,Topsham,ESEDIRECT.,71.00,Planned Project Mats Tech,ESEDIRECT.CO.UK,Stationery,192001,0100020321,DA13,14.20
26/04/2019,Middlemoor Fire Station,XMA LTD,28.82,Print Consumables,LASERJET CB436A BLACK PRINT CART,Programmin,192001,0100020470,JA02,5.76
26/04/2019,Middlemoor Fire Station,XMA LTD,32.24,Print Consumables,78A BLACK LASERJET CONTRACT TON CART,Programmin,192001,0100020471,JA02,6.45
24/04/2019,Exmouth,LYRECO UK,6.97,Printing/Stationery/Photocopy,DYMO 45013 D1 TAPE 12MMX7M BLK/WH,Stationery,192001,0100020197,JA01,1.39
24/04/2019,Exmouth,LYRECO UK,12.06,Printing/Stationery/Photocopy,DYMO 45017 D1 TAPE 12MMX7M BLK/RED,Stationery,192001,0100020197,JA01,2.41
24/04/2019,Exmouth,LYRECO UK,12.06,Printing/Stationery/Photocopy,DYMO 45016 D1 TAPE 12MMX7M BLK/BLU,Stationery,192001,0100020197,JA01,2.41
24/04/2019,Exmouth,LYRECO UK,4.39,Printing/Stationery/Photocopy,PK5 BIC GRIP HIGHLIGHTER PENS C/TIP ASST,Stationery,192001,0100020197,JA01,0.88
24/04/2019,Exmouth,LYRECO UK,8.28,Printing/Stationery/Photocopy,DYMO 45018 D1 TAPE 12MMX7M BLK/YLLW,Stationery,192001,0100020197,JA01,1.66
24/04/2019,Exmouth,LYRECO UK,12.06,Printing/Stationery/Photocopy,DYMO 45019 D1 TAPE 12MMX7M BLK/GR,Stationery,192001,0100020197,JA01,2.41
24/04/2019,Exmouth,LYRECO UK,1.04,Printing/Stationery/Photocopy,BX12 LYRECO BUDGET PENCIL UNTIPPED HB,Stationery,192001,0100020197,JA01,0.21
24/04/2019,Axminster,THRIFTY CA,22.14,Hired Transport,Hired Transport,Thrify Ren,192001,0100020259,FD01,4.43
24/04/2019,Axminster,THRIFTY CA,44.28,Hired Transport,Hired Transport,Thrify Ren,192001,0100020259,FD01,8.86
24/04/2019,Axminster,THRIFTY CA,84.30,Hired Transport,Hired Transport,Thrify Ren,192001,0100020259,FD01,16.86
24/04/2019,Colyton,THRIFTY CA,50.58,Hired Transport,Hired Transport,Thrify Ren,192001,0100020259,FD01,10.12
24/04/2019,Honiton,THRIFTY CA,44.28,Hired Transport,Hired Transport,Thrify Ren,192001,0100020259,FD01,8.86
24/04/2019,Ottery St Mary,THRIFTY CA,41.64,Hired Transport,Hired Transport,Thrify Ren,192001,0100020259,FD01,8.33
24/04/2019,Ottery St Mary,THRIFTY CA,23.39,Hired Transport,Hired Transport,Thrify Ren,192001,0100020259,FD01,4.68
24/04/2019,Seaton,THRIFTY CA,22.14,Hired Transport,Hired Transport,Thrify Ren,192001,0100020259,FD01,4.43
24/04/2019,Seaton,THRIFTY CA,44.28,Hired Transport,Hired Transport,Thrify Ren,192001,0100020259,FD01,8.86
02/04/2019,Fire Control,LYRECO UK,30.72,Printing/Stationery/Photocopy,BX5 LYRECO FLIPCHART PADS A1 40 SHT,Stationery,192001,0100020174,JA01,6.14
02/04/2019,Fire Control,LYRECO UK,52.16,Printing/Stationery/Photocopy,BIOFFICE EASY NON MAG FLIPCHART 70X102CM,Stationery,192001,0100020174,JA01,10.44
02/04/2019,Fire Control,LYRECO UK,1.58,Printing/Stationery/Photocopy,BX100 LYRECO SCREEN WIPES,Stationery,192001,0100020173,JA01,0.32
02/04/2019,Fire Control,LYRECO UK,1.50,Printing/Stationery/Photocopy,FOCUS BALL PEN MEDIUM BLK,Stationery,192001,0100020173,JA01,0.30
02/04/2019,Fire Control,LYRECO UK,17.90,Print Consumables,LYRECO LAS CART COMP HP CE255A BLK,Stationery,192001,0100020173,JA02,3.58
17/04/2019,Fire Control,AMZNMKTPLA,18.18,Standard Equipment,AMZNMKTPLACE AMAZON.CO.UK,Misc. Spec,192001,0100020318,HA01,0.00
27/04/2019,Fire Control,DCC PRKING,30.00,External Trainer Hire,DCC PRKING PERMITS,Colleges &,192001,0100020622,AE15,0.00
28/04/2019,Fire Control,WWW.BW-HER,87.30,Hotel Booking,WWW.BW-HERONSTONHOTEL.,"Hotels, Mo",192001,0100020623,FD77,0.00
03/04/2019,Response Policy & Specialist C,DILLINGTON,117.40,External Trainer Hire,DILLINGTON HOUSE,Schools,192001,0100020273,AE15,0.00
03/04/2019,Response Policy & Specialist C,RAJ MAHAL,44.20,Catering/Refreshments,RAJ MAHAL,Restaurant,192001,0100020282,FD76,0.00
04/04/2019,Response Policy & Specialist C,MCDONALDS1,12.78,Catering/Refreshments,MCDONALDS1009,Fast Food,192001,0100020283,FD76,0.00
04/04/2019,Response Policy & Specialist C,PARCEL2GO_,52.00,Postages,PARCEL2GO_UK,Courier Se,192001,0100020274,JA05,0.00
07/04/2019,Response Policy & Specialist C,Amazon.co.,37.82,Hazmat Equipment,Amazon.co.uk*MZ3HS11F4,Direct Sal,192001,0100020270,HC07,0.00
19/04/2019,Response Policy & Specialist C,LYRECO UK,0.95,Printing/Stationery/Photocopy,BX12 FOLD BACK CLIPS 7X19MM BLACK,Stationery,192001,0100020195,JA01,0.19
19/04/2019,Response Policy & Specialist C,LYRECO UK,5.34,Printing/Stationery/Photocopy,PK6 LYRECO BUDGET PACK/TAPE 50MMX66M BRW,Stationery,192001,0100020195,JA01,1.07
19/04/2019,Response Policy & Specialist C,LYRECO UK,2.80,Printing/Stationery/Photocopy,BX6 LYRECO MAGNETS ROUND 27MM WH,Stationery,192001,0100020195,JA01,0.56
23/04/2019,Response Policy & Specialist C,SAINSBURYS,8.95,Subsistence Uniformed,SAINSBURYS PETROL,Service St,192001,0100020358,FD75,0.00
28/04/2019,Response Policy & Specialist C,MCDONALDS,4.99,Catering/Refreshments,MCDONALDS,Fast Food,192001,0100020565,FD76,0.00
29/04/2019,Response Policy & Specialist C,AMZN MKTP,24.51,Publications/Subscriptions,AMZN MKTP UK*MN7KL9CL4 AM,Book Store,192001,0100020554,JA04,4.91
30/04/2019,Response Policy & Specialist C,BRITISH ST,304.80,Operational Equipment,BRITISH STANDARDS,Misc Busin,192001,0100020555,HC00,0.00
02/04/2019,Research & Development,GLOUCESTER,8.80,Catering/Refreshments,GLOUCESTER SNORTH,Restaurant,192001,0100020254,FD76,0.00
02/04/2019,Research & Development,INDUSTRIAL,132.00,Operational Equipment,INDUSTRIAL ADHESIV,Chemical P,192001,0100020320,HC00,26.40
03/04/2019,Research & Development,WELCOME BR,7.49,Subsistence Uniformed,WELCOME BREAK,Misc Food,192001,0100020255,FD75,0.00
03/04/2019,Research & Development,TOWN CENTR,10.00,Subsistence Uniformed,TOWN CENTRE CAR PARKS-,Car Parkin,192001,0100020256,FD75,0.00
03/04/2019,Research & Development,LYRECO UK,7.74,Printing/Stationery/Photocopy,PERSO 4D-RING BINDER 30MM A4+ RED,Stationery,192001,0100020176,JA01,1.55
03/04/2019,Research & Development,LYRECO UK,1.70,Printing/Stationery/Photocopy,LYR BUDGET 10P C/BOARD DIV A4 160G PASTL,Stationery,192001,0100020176,JA01,0.34
06/04/2019,USAR Team,TESCO STOR,34.69,Catering/Refreshments,TESCO STORE 2487,Grocery St,192001,0100020271,FD76,0.00
16/04/2019,USAR Team,PAYPAL *KD,12.48,Standard Equipment,PAYPAL *KD AND JAY,Lawn & Gar,192001,0100020150,HA01,2.50
23/04/2019,USAR Team,HONITON SF,1.29,Catering/Refreshments,HONITON SF CONNECT,Service St,192001,0100020272,FD76,0.00
30/04/2019,USAR Team,WELCOME BR,12.52,Subsistence Uniformed,WELCOME BREAK SEDGEMOO,Misc Food,192001,0100020491,FD75,0.00
09/04/2019,USAR Dog,BATTERY ST,7.24,Standard Equipment,BATTERY STATION,Household,192001,0100020146,HA01,1.45
09/04/2019,USAR Dog,WWW.MUTTSB,18.71,USAR Dog Expenses,WWW.MUTTSBUTTS.COM,"Pet Shops,",192001,0100020147,HA08,3.74
09/04/2019,USAR Dog,OSCARS HON,63.45,USAR Dog Expenses,OSCARS HONITON R/T CUR,"Pet Shops,",192001,0100020148,HA08,12.69
09/04/2019,USAR Dog,SIDMOUTH P,41.05,USAR Dog Expenses,SIDMOUTH PETS,"Pet Shops,",192001,0100020144,HA08,8.21
09/04/2019,USAR Dog,PET SPECTR,34.16,USAR Dog Expenses,PET SPECTRUM GROUP,"Pet Shops,",192001,0100020145,HA08,6.83
13/04/2019,USAR Dog,SIDMOUTH P,232.50,USAR Dog Expenses,SIDMOUTH PETS,"Pet Shops,",192001,0100020149,HA08,46.50
18/04/2019,Assistant Regional Planner,PALM E INT,834.07,Operational Equipment,PALM E INTERNATIONAL LTD,Sporting G,192001,0100020284,HC00,0.00
18/04/2019,Assistant Regional Planner,NORTHERN D,394.20,Operational Equipment,NORTHERN DIVER (INTNL),Sporting G,192001,0100020285,HC00,0.00
03/04/2019,Network Fire Services Partners,COSTA,4.79,Catering/Refreshments,COSTA,Restaurant,192001,0100020122,FD76,0.96
02/04/2019,West Devon,HTTPS://PL,300.00,Standard Equipment,Parking permit,"Civic, Soc",192001,0100020160,HA01,0.00
02/04/2019,West Devon,HTTPS://PL,300.00,Standard Equipment,Parking permit,"Civic, Soc",192001,0100020161,HA01,0.00
02/04/2019,West Devon,HTTPS://PL,300.00,Standard Equipment,Parking permit,"Civic, Soc",192001,0100020162,HA01,0.00
02/04/2019,West Devon,HTTPS://PL,300.00,Standard Equipment,Parking permit,"Civic, Soc",192001,0100020156,HA01,0.00
02/04/2019,West Devon,HTTPS://PL,300.00,Standard Equipment,Parking permit,"Civic, Soc",192001,0100020157,HA01,0.00
02/04/2019,West Devon,HTTPS://PL,300.00,Standard Equipment,Parking permit,"Civic, Soc",192001,0100020158,HA01,0.00
02/04/2019,West Devon,HTTPS://PL,300.00,Standard Equipment,Parking permit,"Civic, Soc",192001,0100020159,HA01,0.00
04/04/2019,West Devon,XMA LTD,153.69,Print Consumables,950XL BLACK 951XL CMY 4 PACK,Programmin,192001,0100020205,JA02,30.74
04/04/2019,West Devon,XMA LTD,64.48,Print Consumables,78A BLACK LASERJET CONTRACT TON CART,Programmin,192001,0100020205,JA02,12.90
24/04/2019,West Devon,THRIFTY CA,388.08,Hired Transport,Hired Transport,Thrify Ren,192001,0100020258,FD01,35.28
24/04/2019,West Devon,THRIFTY CA,435.12,Hired Transport,Hired Transport,Thrify Ren,192001,0100020258,FD01,39.56
24/04/2019,West Devon,LYRECO UK,14.90,Printing/Stationery/Photocopy,RM500 LYRECO PREMIUM PAPER 100GR A4 WH,Stationery,192001,0100020199,JA01,2.98
24/04/2019,West Devon,LYRECO UK,3.81,Printing/Stationery/Photocopy,LEITZ LEVER ARCH FILE A4 80MM PP RED,Stationery,192001,0100020199,JA01,0.76
24/04/2019,West Devon,LYRECO UK,4.44,Printing/Stationery/Photocopy,LYRECO LETTER TRAY BLUE,Stationery,192001,0100020199,JA01,0.89
24/04/2019,West Devon,LYRECO UK,5.00,Printing/Stationery/Photocopy,LYRECO 2O-RING BINDER PP A4 25MM RED,Stationery,192001,0100020199,JA01,1.00
24/04/2019,West Devon,LYRECO UK,2.68,Printing/Stationery/Photocopy,LYRECO BOX FILE FOOLSCAP BLACK,Stationery,192001,0100020199,JA01,0.53
26/04/2019,West Devon,LYRECO UK,3.12,Printing/Stationery/Photocopy,LYRECO PREMIUM SOFT BALL PEN MEDIUM BLK,Stationery,192001,0100020435,JA01,0.62
26/04/2019,West Devon,LYRECO UK,1.50,Printing/Stationery/Photocopy,MICRON B/POINT PEN MED BLK,Stationery,192001,0100020435,JA01,0.30
26/04/2019,West Devon,LYRECO UK,4.80,Printing/Stationery/Photocopy,LYRECO THINGS TO DO PAD,Stationery,192001,0100020435,JA01,0.96
26/04/2019,West Devon,LYRECO UK,1.09,Printing/Stationery/Photocopy,LYRECO WHITEBOARD CLEANING FOAM 400ML,Stationery,192001,0100020435,JA01,0.22
26/04/2019,West Devon,LYRECO UK,26.70,Printing/Stationery/Photocopy,RM500 LYRECO BUDGET PAPER A4 75G WH,Stationery,192001,0100020435,JA01,5.34
04/04/2019,Plympton,TOOLSTATIO,59.99,Planned Project Mats Tech,TOOLSTATION LTD,Hardware S,192001,0100020349,DA13,12.01
10/04/2019,Plympton,VICTORIAN,235.66,Planned Project Mats Tech,VICTORIAN PLUMBING LTD,Household,192001,0100020352,DA13,47.13
15/04/2019,Plympton,TOOLSTATIO,51.57,Planned Project Mats Tech,TOOLSTATION LTD,Hardware S,192001,0100020355,DA13,10.32
16/04/2019,Plympton,EDMUNDSON,9.56,Unforseen Maintnce Mats Techn,EDMUNDSON ELECTRICAL L,Electrical,192001,0100020357,DA12,1.91
24/04/2019,Plympton,THRIFTY CA,44.28,Hired Transport,Hire cars Feb 19,Thrify Ren,192001,0100020265,FD01,8.86
26/04/2019,Plympton,TOOLSTATIO,45.46,Planned Project Mats Tech,TOOLSTATION LTD,Hardware S,192001,0100020652,DA13,9.11
29/04/2019,Plympton,TOOLSTATIO,22.58,Planned Project Mats Tech,TOOLSTATION LTD,Hardware S,192001,0100020653,DA13,4.52
24/04/2019,Camels Head,THRIFTY CA,233.23,Hired Transport,Hire cars Feb 19,Thrify Ren,192001,0100020265,FD01,46.66
05/04/2019,Crownhill,AMZN Mktp,13.62,Standard Equipment,Acrylic frame,Book Store,192001,0100020163,HA01,2.73
08/04/2019,Crownhill,TOOLSTATIO,10.55,Unforseen Maintnce Mats Techn,TOOLSTATION LTD,Hardware S,192001,0100020350,DA12,2.11
06/04/2019,Greenbank,Amazon.co.,29.76,Standard Equipment,Rider board holder,Direct Sal,192001,0100020164,HA01,5.96
12/04/2019,Greenbank,CURRYS ONL,207.50,Standard Equipment,Fridge Freezer for STN50,Electronic,192001,0100020165,HA01,41.50
17/04/2019,Greenbank,AMZ*Amazon,-29.76,Standard Equipment,rider board holders return,Direct Sal,192001,0100020166,HA01,-5.96
24/04/2019,Plymstock,THRIFTY CA,154.98,Hired Transport,Hire cars Feb 19,Thrify Ren,192001,0100020265,FD01,31.01
24/04/2019,Kingsbridge,THRIFTY CA,93.56,Hired Transport,Hire cars Feb 19,Thrify Ren,192001,0100020265,FD01,18.72
24/04/2019,Ivybridge,THRIFTY CA,194.24,Hired Transport,Hire cars Feb 19,Thrify Ren,192001,0100020265,FD01,38.85
24/04/2019,Kingston,THRIFTY CA,110.70,Hired Transport,Hire cars Feb 19,Thrify Ren,192001,0100020265,FD01,22.15
24/04/2019,Modbury,THRIFTY CA,105.42,Hired Transport,Hire cars Feb 19,Thrify Ren,192001,0100020265,FD01,21.09
10/04/2019,Tavistock,THE KEY SA,54.16,Unforseen Maintnce Mats Techn,THE KEY SAFE COMPANY,Hardware S,192001,0100020351,DA12,10.83
24/04/2019,Tavistock,THRIFTY CA,25.64,Hired Transport,Hire cars Feb 19,Thrify Ren,192001,0100020265,FD01,5.13
24/04/2019,Yelverton,THRIFTY CA,44.28,Hired Transport,Hire cars Feb 19,Thrify Ren,192001,0100020265,FD01,8.86
03/04/2019,South Devon,LYRECO UK,2.94,Printing/Stationery/Photocopy,PK6LYRECO REPO NOTE 76X127 ASS BRILL COL,Stationery,192001,0100020178,JA01,0.59
03/04/2019,South Devon,XMA LTD,128.96,Print Consumables,78A BLACK LASERJET CONTRACT TON CART,Programmin,192001,0100020204,JA02,25.79
04/04/2019,South Devon,LYRECO UK,6.00,Printing/Stationery/Photocopy,LYRECO SHORTHAND NOTEBOOK 80S 56G,Stationery,192001,0100020180,JA01,1.20
04/04/2019,South Devon,LYRECO UK,5.82,Printing/Stationery/Photocopy,PUKKA POCK NOTEBK 130X85MM RULEDSILV/BLK,Stationery,192001,0100020180,JA01,1.16
04/04/2019,South Devon,LYRECO UK,25.02,Printing/Stationery/Photocopy,BLACK N'RED WIREBOUND NOTEBOOK 140SHT A5,Stationery,192001,0100020180,JA01,5.01
04/04/2019,South Devon,LYRECO UK,6.30,Printing/Stationery/Photocopy,PK1000 LYRECO ENV DL 80G S/S WH,Stationery,192001,0100020180,JA01,1.26
04/04/2019,South Devon,LYRECO UK,1.20,Printing/Stationery/Photocopy,LYRECO BUDGET CLEAR TAPE 19MMX66M,Stationery,192001,0100020180,JA01,0.24
05/04/2019,South Devon,BOOKER LIM,145.44,Uniforms Other,BOOKER LIMITED PAIGNTON,Caterers,192001,0100020287,HG01,29.09
10/04/2019,South Devon,XMA LTD,7.16,Print Consumables,COMPAT HP NO 343 TRICOLOR CART,Programmin,192001,0100020206,JA02,1.43
10/04/2019,South Devon,XMA LTD,10.70,Print Consumables,HP NO 337 BLACK INK,Programmin,192001,0100020206,JA02,2.14
19/04/2019,South Devon,Amazon.co.,89.76,Standard Equipment,Amazon.co.uk*MZ7NZ1ST4,Direct Sal,192001,0100020135,HA01,17.96
16/04/2019,Torquay,WWW.IKEA.C,"1,408.29",Standard Equipment,WWW.IKEA.COM,Furniture,192001,0100020134,HA01,281.66
24/04/2019,Torquay,THRIFTY CA,388.08,Hired Transport,Hired Transport,Thrify Ren,192001,0100020258,FD01,35.28
09/04/2019,Paignton,AMZNMKTPLA,49.16,Standard Equipment,AMZNMKTPLACE AMAZON.CO.UK,Misc. Spec,192001,0100020133,HA01,9.83
24/04/2019,Paignton,THRIFTY CA,156.00,Hired Transport,Paignton Hire Cars,Thrify Ren,192001,0100020261,FD01,31.21
24/04/2019,Brixham,THRIFTY CA,243.54,Hired Transport,Brixham Hire Cars,Thrify Ren,192001,0100020261,FD01,48.73
24/04/2019,Ashburton,THRIFTY CA,172.86,Hired Transport,Ashburton Hire Cars,Thrify Ren,192001,0100020261,FD01,34.58
24/04/2019,Bovey Tracey,THRIFTY CA,22.14,Hired Transport,Bovey Tracey Hire Cars,Thrify Ren,192001,0100020261,FD01,4.43
24/04/2019,Buckfastleigh,THRIFTY CA,22.14,Hired Transport,Hired Transport,Thrify Ren,192001,0100020261,FD01,4.43
01/04/2019,Chagford,BLINDS 2 G,247.27,Planned Project Mats Tech,BLINDS 2 GO LTD,Drapery &,192001,0100020345,DA13,0.00
01/04/2019,Chagford,TOOLSTATIO,57.43,Planned Project Mats Tech,TOOLSTATION LTD,Hardware S,192001,0100020346,DA13,11.49
01/04/2019,Chagford,SCREWFIX P,60.25,Planned Project Mats Tech,SCREWFIX PLYMOUTH VALLEY,Timber & B,192001,0100020347,DA13,0.00
24/04/2019,Chagford,THRIFTY CA,22.14,Hired Transport,Chagford Hire Cars,Thrify Ren,192001,0100020261,FD01,4.43
29/04/2019,Chagford,BUYOLOGY L,6.66,Planned Project Mats Tech,BUYOLOGY LTD,Misc Durab,192001,0100020654,DA13,1.33
24/04/2019,Dartmouth,WWW.IRONMO,13.35,Planned Project Mats Tech,WWW.IRONMONGERYDIRECT.,"Glass, Pai",192001,0100020324,DA13,2.67
24/04/2019,Dawlish,THRIFTY CA,110.70,Hired Transport,DawlishHire Cars,Thrify Ren,192001,0100020261,FD01,22.15
24/04/2019,Moretonhampstead,THRIFTY CA,84.30,Hired Transport,Moretonhampstead Hire Cars,Thrify Ren,192001,0100020261,FD01,16.86
24/04/2019,Teignmouth,THRIFTY CA,308.70,Hired Transport,Teignmouth Hire Cars,Thrify Ren,192001,0100020261,FD01,61.76
02/04/2019,Taunton Group,XMA LTD,22.04,Print Consumables,HP 903XL HIGH YIELD YELLOW ORIGINAL,Programmin,192001,0100020202,JA02,4.41
02/04/2019,Taunton Group,XMA LTD,22.04,Print Consumables,HP 903XL HIGH YIELD CYAN ORIGINAL IN,Programmin,192001,0100020202,JA02,4.41
02/04/2019,Taunton Group,XMA LTD,22.04,Print Consumables,HP 903XL HIGH YIELD MAGENTA ORIGINAL,Programmin,192001,0100020202,JA02,4.41
02/04/2019,Taunton Group,XMA LTD,45.40,Print Consumables,HP 903XL HIGH YIELD BLACK ORIGINAL I,Programmin,192001,0100020202,JA02,9.08
03/04/2019,Taunton Group,LYRECO UK,2.08,Printing/Stationery/Photocopy,HAINENKO RECEPTION PEN W/2 REFILLS BLK,Stationery,192001,0100020177,JA01,0.41
03/04/2019,Taunton Group,LYRECO UK,2.58,Printing/Stationery/Photocopy,BX1600 LYRECO M/PURPOSE LABEL 99.1X33.9,Stationery,192001,0100020177,JA01,0.52
03/04/2019,Taunton Group,LYRECO UK,4.00,Printing/Stationery/Photocopy,BX100 LYRECO LAM POUCH 2X75MI A4 GLOSS,Stationery,192001,0100020177,JA01,0.80
03/04/2019,Taunton Group,LYRECO UK,3.00,Printing/Stationery/Photocopy,MICRON B/POINT PEN MED BLK,Stationery,192001,0100020177,JA01,0.60
03/04/2019,Taunton Group,LYRECO UK,1.52,Printing/Stationery/Photocopy,LYRECO STAPLER HALF STRIP 20SHT BLACK,Stationery,192001,0100020177,JA01,0.30
03/04/2019,Taunton Group,LYRECO UK,2.90,Printing/Stationery/Photocopy,LYRECO HARD BACK TWIN WIRE NOTEBOOK A5,Stationery,192001,0100020177,JA01,0.58
03/04/2019,Taunton Group,LYRECO UK,0.62,Printing/Stationery/Photocopy,PK55 LYRECO ADHESIVE PADS 50G,Stationery,192001,0100020177,JA01,0.13
03/04/2019,Taunton Group,LYRECO UK,99.50,Printing/Stationery/Photocopy,RM500 LYRECO PAPER A4 80G WH,Stationery,192001,0100020177,JA01,19.90
24/04/2019,Taunton Group,THRIFTY CA,109.69,Hired Transport,Car Hire,Thrify Ren,192001,0100020260,FD01,23.03
24/04/2019,Taunton Group,THRIFTY CA,168.74,Hired Transport,Car Hire,Thrify Ren,192001,0100020260,FD01,35.44
29/04/2019,Taunton Group,XMA LTD,84.48,Print Consumables,HP 953XL HIGH YIELD BLACK ORIGINAL I,Programmin,192001,0100020472,JA02,16.90
29/04/2019,Taunton Group,XMA LTD,38.36,Print Consumables,HP 953XL HIGH YIELD YELLOW ORIGINAL,Programmin,192001,0100020472,JA02,7.67
29/04/2019,Taunton Group,XMA LTD,38.36,Print Consumables,HP 953XL HIGH YIELD CYAN ORIGINAL IN,Programmin,192001,0100020472,JA02,7.67
29/04/2019,Taunton Group,XMA LTD,38.36,Print Consumables,HP 953XL HIGH YIELD MAGENTA ORIGINAL,Programmin,192001,0100020472,JA02,7.67
30/04/2019,Taunton Group,WWW.NISBET,41.92,Standard Equipment,WWW.NISBETS.COM,Catalogue,192001,0100020390,HA01,0.00
24/04/2019,Taunton,THRIFTY CA,138.00,Hired Transport,Car Hire,Thrify Ren,192001,0100020260,FD01,28.98
24/04/2019,Minehead,THRIFTY CA,154.95,Hired Transport,Car Hire,Thrify Ren,192001,0100020260,FD01,32.54
24/04/2019,Porlock,THRIFTY CA,49.23,Hired Transport,Car Hire,Thrify Ren,192001,0100020260,FD01,10.34
24/04/2019,Wellington,THRIFTY CA,96.56,Hired Transport,Car Hire,Thrify Ren,192001,0100020260,FD01,20.28
24/04/2019,Wiveliscombe,THRIFTY CA,65.88,Hired Transport,Car Hire,Thrify Ren,192001,0100020260,FD01,13.83
24/04/2019,Bridgwater,THRIFTY CA,863.43,Hired Transport,Car Hire,Thrify Ren,192001,0100020260,FD01,181.32
01/04/2019,Burnham-on-Sea,LOCKS DOOR,21.41,Unforseen Maintnce Mats Techn,LOCKS DOORS AND WINDOWS,Hardware S,192001,0100020210,DA12,4.28
24/04/2019,Burnham-on-Sea,THRIFTY CA,119.58,Hired Transport,Car Hire,Thrify Ren,192001,0100020260,FD01,25.11
24/04/2019,Nether Stowey,THRIFTY CA,90.31,Hired Transport,Car Hire,Thrify Ren,192001,0100020260,FD01,18.97
24/04/2019,Williton,THRIFTY CA,250.44,Hired Transport,Car Hire,Thrify Ren,192001,0100020260,FD01,52.59
24/04/2019,Cheddar Fire Station,THRIFTY CA,116.04,Hired Transport,Car Hire,Thrify Ren,192001,0100020260,FD01,24.37
15/04/2019,Yeovil Group,LAND REGIS,6.00,Standard Equipment,LAND REGISTRY,Government,192001,0100020138,HA01,0.00
24/04/2019,Yeovil Group,THRIFTY CA,66.88,Hired Transport,Car Hire,Thrify Ren,192001,0100020260,FD01,14.05
09/04/2019,Yeovil,VGG LIMITE,20.94,Standard Equipment,VGG LIMITED GROUP,Utilities,192001,0100020137,HA01,0.00
24/04/2019,Yeovil,THRIFTY CA,21.96,Hired Transport,Car Hire,Thrify Ren,192001,0100020260,FD01,4.61
24/04/2019,Chard,THRIFTY CA,156.97,Hired Transport,Car Hire,Thrify Ren,192001,0100020260,FD01,32.96
24/04/2019,Crewkerne,THRIFTY CA,75.60,Hired Transport,Car Hire,Thrify Ren,192001,0100020260,FD01,15.88
24/04/2019,Ilminster,THRIFTY CA,201.99,Hired Transport,Car Hire,Thrify Ren,192001,0100020260,FD01,42.42
24/04/2019,Martock,THRIFTY CA,138.89,Hired Transport,Car Hire,Thrify Ren,192001,0100020260,FD01,29.17
24/04/2019,Somerton,THRIFTY CA,310.56,Hired Transport,Car Hire,Thrify Ren,192001,0100020260,FD01,65.22
24/04/2019,Glastonbury Fire station,THRIFTY CA,125.44,Hired Transport,Car Hire,Thrify Ren,192001,0100020260,FD01,26.34
24/04/2019,Castle Cary,THRIFTY CA,105.84,Hired Transport,Car Hire,Thrify Ren,192001,0100020260,FD01,22.23
24/04/2019,Frome,THRIFTY CA,71.19,Hired Transport,Car Hire,Thrify Ren,192001,0100020260,FD01,14.95
18/04/2019,Shepton Mallet,THE CARPET,11.90,Unforseen Maintnce Mats Techn,THE CARPET SHOP,Floor Cove,192001,0100020215,DA12,0.00
24/04/2019,Shepton Mallet,THRIFTY CA,109.79,Hired Transport,Car Hire,Thrify Ren,192001,0100020260,FD01,23.06
24/04/2019,Wells,THRIFTY CA,437.73,Hired Transport,Car Hire,Thrify Ren,192001,0100020260,FD01,91.92
01/04/2019,Wincanton,BLINDS 2 G,85.76,Unforseen Maintnce Mats Techn,BLINDS 2 GO LTD,Drapery &,192001,0100020139,DA12,17.15
03/04/2019,Wincanton,TP WINCANT,6.49,Unforseen Maintnce Mats Techn,BAHCO HARDPOINT HANDSAW 20X8PT BAH24420,Timber & B,192001,0100020211,DA12,1.30
03/04/2019,Wincanton,TP WINCANT,9.68,Unforseen Maintnce Mats Techn,EVO-STIK STICKS LIKE TURBO WHITE,Timber & B,192001,0100020211,DA12,1.94
03/04/2019,Wincanton,TP WINCANT,9.68,Unforseen Maintnce Mats Techn,EVO-STIK STICKS LIKE TURBO WHITE,Timber & B,192001,0100020211,DA12,1.94
23/04/2019,Wincanton,BLINDS 2 G,35.93,Unforseen Maintnce Mats Techn,BLINDS 2 GO LTD,Drapery &,192001,0100020140,DA12,7.19
03/04/2019,Organisational Dev Leadership,TESCO STOR,9.78,Catering/Refreshments,TESCO STORE 2487,Grocery St,192001,0100020308,FD76,0.00
03/04/2019,Organisational Dev Leadership,IKEA LIMIT,40.50,Printing/Stationery/Photocopy,IKEA LIMITED,Furniture,192001,0100020309,JA01,0.00
04/04/2019,Organisational Dev Leadership,WWW.STONEW,813.60,Publications/Subscriptions,WWW.STONEWALL.ORG.,Other,192001,0100020310,JA04,0.00
17/04/2019,Organisational Dev Leadership,HOME FARM,70.00,Catering/Refreshments,HOME FARM CAFE,Restaurant,192001,0100020311,FD76,0.00
18/04/2019,Organisational Dev Leadership,SAINSBURYS,9.20,Catering/Refreshments,SAINSBURYS S/MKTS,Grocery St,192001,0100020312,FD76,0.00
18/04/2019,Organisational Dev Leadership,LYRECO UK,0.93,Printing/Stationery/Photocopy,PK55 LYRECO ADHESIVE PADS 50G,Stationery,192001,0100020192,JA01,0.19
18/04/2019,Organisational Dev Leadership,LYRECO UK,4.78,Printing/Stationery/Photocopy,LYRECO REPOSITIONABLE GLUE SPRAY 400ML,Stationery,192001,0100020192,JA01,0.96
18/04/2019,Organisational Dev Leadership,LYRECO UK,1.38,Printing/Stationery/Photocopy,LYRECO RUBBERIZED MEC PENCIL 0.7MM BLK,Stationery,192001,0100020192,JA01,0.27
18/04/2019,Organisational Dev Leadership,LYRECO UK,5.15,Print Consumables,LYRECO I/JET COMP HP CN045A BLK,Stationery,192001,0100020192,JA02,1.03
18/04/2019,Organisational Dev Leadership,LYRECO UK,5.15,Print Consumables,LYRECO I/JET COMP HP CN046A CYA,Stationery,192001,0100020192,JA02,1.03
18/04/2019,Organisational Dev Leadership,LYRECO UK,5.15,Print Consumables,LYRECO I/JET COMP HP CN047A MAGE,Stationery,192001,0100020192,JA02,1.03
18/04/2019,Organisational Dev Leadership,LYRECO UK,5.15,Print Consumables,LYRECO I/JET COMP HP CN048A YLLW,Stationery,192001,0100020192,JA02,1.03
23/04/2019,Organisational Dev Leadership,LIDL GB EX,17.41,Catering/Refreshments,LIDL GB EXMOUTH,Grocery St,192001,0100020313,FD76,0.00
24/04/2019,Organisational Dev Leadership,HOME FARM,97.70,Catering/Refreshments,HOME FARM CAFE,Restaurant,192001,0100020314,FD76,0.00
24/04/2019,Organisational Dev Leadership,ALDI 49 78,9.98,Catering/Refreshments,ALDI 49 780,Grocery St,192001,0100020315,FD76,0.00
25/04/2019,Organisational Dev Leadership,SAINSBURYS,9.50,Catering/Refreshments,SAINSBURYS S/MKTS,Grocery St,192001,0100020317,FD76,0.00
25/04/2019,Organisational Dev Leadership,TESCO STOR,13.26,Catering/Refreshments,TESCO STORE 2487,Grocery St,192001,0100020316,FD76,0.00
26/04/2019,Organisational Dev Leadership,TRAINLINE,27.92,Rail Fares - Uniformed,TRAINLINE,Passenger,192001,0100020509,FD65,0.00
29/04/2019,Organisational Dev Leadership,ALDI 49 78,13.34,Catering/Refreshments,ALDI 49 780,Grocery St,192001,0100020614,FD76,0.00
30/04/2019,Organisational Dev Leadership,ALDI 49 78,9.99,Catering/Refreshments,ALDI 49 780,Grocery St,192001,0100020615,FD76,0.00
05/04/2019,Human Resources,SPECSAVERS,"1,750.00",Wholetime Medical Expenses,SPECSAVERSEVOUGB-,Opticians,192001,0100020131,AL42,0.00
12/04/2019,Human Resources,LYRECO UK,36.24,Standard Equipment,PAIR ANSELL 11-618 HYFLEX GLOVE BLUE 6,Stationery,192001,0100020186,HA01,7.25
12/04/2019,Human Resources,LYRECO UK,5.67,Standard Equipment,PAIR ANSELL 11-724 HYFLEX GLOVE WH/GRY10,Stationery,192001,0100020186,HA01,1.13
12/04/2019,Human Resources,LYRECO UK,5.83,Standard Equipment,PAIR ULTIMATE ARDANT 5 GLOVES 8 GREY,Stationery,192001,0100020186,HA01,1.17
12/04/2019,Human Resources,LYRECO UK,17.80,Printing/Stationery/Photocopy,PUKKA JM018 METALLIC SPRING N/BK A4,Stationery,192001,0100020186,JA01,3.56
12/04/2019,Human Resources,LYRECO UK,9.03,Printing/Stationery/Photocopy,BX50 BIC CRISTAL MEDIUM POINT BLACK,Stationery,192001,0100020186,JA01,1.81
12/04/2019,Human Resources,LYRECO UK,9.10,Printing/Stationery/Photocopy,LYRECO BUDGET LEV/FILE 75MM F/CAP D/GRY,Stationery,192001,0100020186,JA01,1.82
12/04/2019,Human Resources,LYRECO UK,6.86,Printing/Stationery/Photocopy,PK1000 LYRECO WDW ENV DL 80G S/S WH,Stationery,192001,0100020186,JA01,1.37
12/04/2019,Human Resources,LYRECO UK,3.11,Printing/Stationery/Photocopy,BX500G LYRECO RUBBER BANDS 180X2MM BLOND,Stationery,192001,0100020186,JA01,0.62
12/04/2019,Human Resources,LYRECO UK,1.05,Printing/Stationery/Photocopy,BX5000 LYRECO 26/6 STAPLES,Stationery,192001,0100020186,JA01,0.21
13/04/2019,Human Resources,LINKEDIN-3,425.96,Recruitment Advertising,LINKEDIN-374*4186726,Continuous,192001,0100020132,JB01,0.00
24/04/2019,Human Resources,THRIFTY CA,388.08,Hired Transport,Hired Transport,Thrify Ren,192001,0100020258,FD01,35.28
26/04/2019,Human Resources,LinkedIn 3,407.24,Recruitment Advertising,LinkedIn 3770633286 lnkd.,Continuous,192001,0100020382,JB01,0.00
28/04/2019,Human Resources,Amazon.co.,165.28,Fitness Equipment,Amazon.co.uk*MN85Z6CL4,Direct Sal,192001,0100020556,HA05,33.06
30/04/2019,Human Resources,Amazon.co.,22.16,Standard Equipment,Amazon.co.uk*MN4FG4O44,Direct Sal,192001,0100020383,HA01,0.00
01/04/2019,Access and Rescue School,GLOUCESTER,11.30,Catering/Refreshments,GLOUCESTER SNORTH,Restaurant,192001,0100020289,FD76,0.00
02/04/2019,Access and Rescue School,WELCOME BR,12.03,Subsistence Uniformed,WELCOME BREAK,Misc Food,192001,0100020288,FD75,0.00
02/04/2019,Access and Rescue School,TABLE TABL,2.35,Catering/Refreshments,TABLE TABLE41011290,Restaurant,192001,0100020290,FD76,0.00
02/04/2019,Access and Rescue School,TESCO STOR,33.63,Catering/Refreshments,TESCO STORES 5194,Grocery St,192001,0100020291,FD76,0.00
03/04/2019,Access and Rescue School,TESCO STOR,29.85,Catering/Refreshments,TESCO STORES 5194,Grocery St,192001,0100020292,FD76,0.00
04/04/2019,Access and Rescue School,TESCO STOR,31.70,Catering/Refreshments,TESCO STORES 5194,Grocery St,192001,0100020293,FD76,0.00
04/04/2019,Access and Rescue School,FRANKLEY S/W,12.88,Catering/Refreshments,FRANKLEY S/W COSTA COF,Restaurant,192001,0100020295,FD76,0.00
04/04/2019,Access and Rescue School,MCDONALDS,14.61,Catering/Refreshments,MCDONALDS,Fast Food,192001,0100020296,FD76,0.00
04/04/2019,Access and Rescue School,EWETSUITS.,26.98,Operational Equipment,EWETSUITS.COM,Sporting G,192001,0100020294,HC00,0.00
11/04/2019,Access and Rescue School,ST GEORGE,65.95,Catering/Refreshments,ST GEORGE & DRAGON,Restaurant,192001,0100020297,FD76,0.00
12/04/2019,Access and Rescue School,IZ *Refuel,213.30,Catering/Refreshments,IZ *Refuel Coffee & Sandw,Restaurant,192001,0100020298,FD76,0.00
16/04/2019,Access and Rescue School,WM MORRISO,8.69,Catering/Refreshments,WM MORRISONS STORE,Grocery St,192001,0100020257,FD76,0.00
23/04/2019,Access and Rescue School,NTS BRIDGE,3.59,Standard Equipment,NTS BRIDGEWATER SS,Service St,192001,0100020301,HA01,0.00
26/04/2019,Access and Rescue School,Amazon Pri,6.66,Subsistence Uniformed,Amazon Prime*MZ1063R54,Continuous,192001,0100020580,FD75,1.33
26/04/2019,Access and Rescue School,SUBWAY,34.40,Catering/Refreshments,SUBWAY,Restaurant,192001,0100020572,FD76,0.00
28/04/2019,Access and Rescue School,NATIONAL C,50.20,Subsistence Uniformed,NATIONAL CAR PARKS,Car Parkin,192001,0100020581,FD75,0.00
28/04/2019,Access and Rescue School,NATIONAL C,50.00,Subsistence Uniformed,NATIONAL CAR PARKS,Car Parkin,192001,0100020519,FD75,0.00
28/04/2019,Access and Rescue School,WELCOME BR,6.10,Subsistence Uniformed,WELCOME BREAK SEDGEMOO,Misc Food,192001,0100020520,FD75,0.00
28/04/2019,Access and Rescue School,GREAT WEST,17.30,Catering/Refreshments,GREAT WESTERN,Restaurant,192001,0100020521,FD76,0.00
29/04/2019,Access and Rescue School,NATIONAL C,37.50,Subsistence Uniformed,NATIONAL CAR PARKS,Car Parkin,192001,0100020599,FD75,0.00
29/04/2019,Access and Rescue School,NATIONAL C,37.50,Subsistence Uniformed,NATIONAL CAR PARKS,Car Parkin,192001,0100020600,FD75,0.00
29/04/2019,Access and Rescue School,ROADCHEF M,15.88,Catering/Refreshments,ROADCHEF M SERV UPAY L,Restaurant,192001,0100020601,FD76,0.00
29/04/2019,Access and Rescue School,GOURMET BU,98.20,Catering/Refreshments,GOURMET BURGER KIT,Restaurant,192001,0100020602,FD76,0.00
30/04/2019,Access and Rescue School,VIVA BRAZI,97.70,Catering/Refreshments,VIVA BRAZIL CARDIFF,Restaurant,192001,0100020603,FD76,0.00
25/04/2019,Fire Behaviour School,EXETER WIN,8.06,Unforseen Maintnce Mats Techn,EXETER WINDOW STORE,Trade Cont,192001,0100020154,DA12,1.62
29/04/2019,Fire Behaviour School,B & Q 1049,3.31,Unforseen Maintnce Mats Techn,BLADE 10INCH,Timber & B,192001,0100020501,DA12,0.66
29/04/2019,Fire Behaviour School,B & Q 1049,10.81,Unforseen Maintnce Mats Techn,SURF PLANE,Timber & B,192001,0100020501,DA12,2.16
29/04/2019,Fire Behaviour School,SCREWFIX E,96.30,Unforseen Maintnce Mats Techn,SCREWFIX EXETER SOWTON,Timber & B,192001,0100020502,DA12,0.00
29/04/2019,Fire Behaviour School,AMZNMktpla,28.98,Trng Equip Miscellaneous,AMZNMktplace,Misc. Spec,192001,0100020500,HA13,0.00
29/04/2019,Fire Behaviour School,FLUKE (UK),136.80,External Prof Support/Advice,FLUKE (UK) LTD,Consultant,192001,0100020503,HJ02,0.00
02/04/2019,Maritime Training School,AMAZON.CO.,19.71,Standard Equipment,AMAZON.CO.UK*MZ3RW1JF4 AM,Misc. Spec,192001,0100020223,HA01,3.95
05/04/2019,Maritime Training School,C/GAS PLYM,106.33,Standard Equipment,C/GAS PLYMOUTH 846,Household,192001,0100020227,HA01,0.00
16/04/2019,Maritime Training School,AMZN Mktp,3.37,Standard Equipment,AMZN Mktp UK*MZ8UU6QZ4,Book Store,192001,0100020239,HA01,0.00
16/04/2019,Maritime Training School,AMZNMKTPLA,5.00,Standard Equipment,AMZNMKTPLACE AMAZON.CO.UK,Misc. Spec,192001,0100020237,HA01,0.00
03/04/2019,Ops Licence School,PAYPAL *TO,33.15,Standard Equipment,PAYPAL *TOOLSTATION,Hardware S,192001,0100020224,HA01,0.00
03/04/2019,Ops Licence School,PAYPAL *TO,-25.16,Standard Equipment,PAYPAL *TOOLSTATION,Hardware S,192001,0100020225,HA01,0.00
10/04/2019,Ops Licence School,AMZN Mktp,4.99,Standard Equipment,AMZN Mktp UK*MZ56N2VO4,Book Store,192001,0100020232,HA01,1.00
11/04/2019,Ops Licence School,TIMPSON LT,13.50,Standard Equipment,TIMPSON LTD,Shoe Repai,192001,0100020233,HA01,0.00
11/04/2019,Ops Licence School,Amazon.co.,13.82,Standard Equipment,Amazon.co.uk*MZ4QN7ML4,Direct Sal,192001,0100020234,HA01,1.92
11/04/2019,Ops Licence School,Amazon.co.,6.63,Standard Equipment,Amazon.co.uk*MZ0H55ME4,Direct Sal,192001,0100020235,HA01,1.32
15/04/2019,Ops Licence School,WEDGES,24.00,Catering/Refreshments,WEDGES,Fast Food,192001,0100020319,FD76,0.00
15/04/2019,Ops Licence School,CHAPLINS SUPERSTORE,22.98,Standard Equipment,CHAPLINS SUPERSTORE PL,Department,192001,0100020236,HA01,0.00
25/04/2019,Fire Safety Training School,LYRECO UK,12.60,Provisions Purchase,SEMI SKIMMED UHT MILK 1L,Stationery,192001,0100020201,HH01,0.00
08/04/2019,First Aid School,AMZNMktpla,26.67,Standard Equipment,AMZNMktplace,Misc. Spec,192001,0100020231,HA01,5.33
08/04/2019,First Aid School,AMZNMktpla,26.67,Standard Equipment,AMZNMktplace,Misc. Spec,192001,0100020228,HA01,5.33
08/04/2019,First Aid School,AMZNMktpla,26.67,Standard Equipment,AMZNMktplace,Misc. Spec,192001,0100020229,HA01,5.33
08/04/2019,First Aid School,AMZNMktpla,26.67,Standard Equipment,AMZNMktplace,Misc. Spec,192001,0100020230,HA01,5.33
01/04/2019,Academy Learning Support,AMZNMKTPLA,16.65,Audio Visual Equipment,AMZNMKTPLACE AMAZON.CO.UK,Misc. Spec,192001,0100020329,HA02,3.33
01/04/2019,Academy Learning Support,HELIGUY.CO,790.83,Audio Visual Equipment,HELIGUY.COM,"Hobby, Toy",192001,0100020330,HA02,158.17
01/04/2019,Academy Learning Support,Peopleperh,198.60,Audio Visual Equipment,Peopleperhour.com PayInvo,Misc Busin,192001,0100020221,HA02,0.00
01/04/2019,Academy Learning Support,Peopleperh,167.80,Audio Visual Equipment,Peopleperhour.com PayInvo,Misc Busin,192001,0100020222,HA02,0.00
02/04/2019,Academy Learning Support,AMZNMktpla,15.99,Audio Visual Equipment,AMZNMktplace,Misc. Spec,192001,0100020331,HA02,0.00
02/04/2019,Academy Learning Support,Amazon.co.,16.57,Audio Visual Equipment,Amazon.co.uk*MZ74F3JJ4,Direct Sal,192001,0100020332,HA02,3.31
03/04/2019,Academy Learning Support,DRONELOGBO,157.08,ICT Application Services (Oth),DRONELOGBOOK,Computer S,192001,0100020333,HA22,0.00
04/04/2019,Academy Learning Support,Peopleperh,538.50,Audio Visual Equipment,Peopleperhour.com PayInvo,Misc Busin,192001,0100020334,HA02,0.00
04/04/2019,Academy Learning Support,HELIGUY.CO,352.50,Audio Visual Equipment,HELIGUY.COM,"Hobby, Toy",192001,0100020226,HA02,70.50
07/04/2019,Academy Learning Support,iStock.com,65.00,Audio Visual Equipment,iStock.com,Commercial,192001,0100020335,HA02,0.00
10/04/2019,Academy Learning Support,DARTBRIDGE,19.07,Subsistence Uniformed,DARTBRIDGE INN,"Bars, Tave",192001,0100020337,FD75,0.00
10/04/2019,Academy Learning Support,Amazon.co.,20.82,Audio Visual Equipment,Amazon.co.uk*MZ0K89VV4,Direct Sal,192001,0100020336,HA02,4.17
12/04/2019,Academy Learning Support,HELIGUY.CO,"2,549.17",Audio Visual Equipment,HELIGUY.COM,"Hobby, Toy",192001,0100020338,HA02,509.83
13/04/2019,Academy Learning Support,AMZNMKTPLA,10.50,Audio Visual Equipment,AMZNMKTPLACE AMAZON.CO.UK,Misc. Spec,192001,0100020339,HA02,0.00
14/04/2019,Academy Learning Support,AMZNMKTPLA,20.49,Audio Visual Equipment,AMZNMKTPLACE AMAZON.CO.UK,Misc. Spec,192001,0100020340,HA02,0.00
16/04/2019,Academy Learning Support,HELIGUY.CO,5.00,Audio Visual Equipment,HELIGUY.COM,"Hobby, Toy",192001,0100020238,HA02,0.00
17/04/2019,Academy Learning Support,UK CAA APP,190.00,Licence fees,UK CAA APPLY ONLINE,Government,192001,0100020341,HA27,0.00
18/04/2019,Academy Learning Support,WWW.BAX-SH,59.96,Audio Visual Equipment,WWW.BAX-SHOP.CO.UK,Electronic,192001,0100020342,HA02,11.99
24/04/2019,Academy Learning Support,PAYPAL *XI,8.45,Audio Visual Equipment,PAYPAL *XIAJICHU,Womens Clo,192001,0100020343,HA02,0.00
25/04/2019,Academy Learning Support,AMZNMktpla,6.93,Audio Visual Equipment,AMZNMktplace,Misc. Spec,192001,0100020344,HA02,0.00
27/04/2019,Academy Learning Support,FASTHOSTS,6.34,ICT Application Services (Oth),FASTHOSTS INTERNET,Computer N,192001,0100020644,HA22,0.00
28/04/2019,Academy Learning Support,AMZNMKTPLA,8.32,Audio Visual Equipment,AMZNMKTPLACE AMAZON.CO.UK,Misc. Spec,192001,0100020645,HA02,1.67
03/04/2019,Academy Management,LYRECO UK,8.40,Printing/Stationery/Photocopy,RM250 DCP 1842 PAPER A4 160G WH,Stationery,192001,0100020175,JA01,1.68
03/04/2019,Academy Management,LYRECO UK,5.81,Printing/Stationery/Photocopy,BX100 FELLOWES LAM POUCH A4 2X80MI GLOSS,Stationery,192001,0100020175,JA01,1.16
03/04/2019,Academy Management,LYRECO UK,58.20,Printing/Stationery/Photocopy,RM500 LYRECO BUDGET PAPER A4 80G WH,Stationery,192001,0100020175,JA01,11.64
03/04/2019,Academy Management,LYRECO UK,1.13,Printing/Stationery/Photocopy,BX750 EXACOMPTA DRAWING PINS BRASS,Stationery,192001,0100020175,JA01,0.22
03/04/2019,Academy Management,LYRECO UK,8.58,Printing/Stationery/Photocopy,LYRECO BUDGET BOX FILE FOOLSCAP,Stationery,192001,0100020175,JA01,1.72
03/04/2019,Academy Management,LYRECO UK,1.75,Printing/Stationery/Photocopy,LYRECO BUDGET PROJECT FILE A4 PP BLACK,Stationery,192001,0100020175,JA01,0.35
05/04/2019,Academy Management,LYRECO UK,5.79,Standard Equipment,PK10 ENERGIZER INDUSTRIAL ALK BAT AA LR6,Stationery,192001,0100020182,HA01,1.16
05/04/2019,Academy Management,LYRECO UK,6.54,Printing/Stationery/Photocopy,LYRECO WHITEBOARD CLEANING FOAM 400ML,Stationery,192001,0100020182,JA01,1.31
05/04/2019,Academy Management,LYRECO UK,10.24,Printing/Stationery/Photocopy,PERSO 4D-RING BINDER 40MM A4+ BLU,Stationery,192001,0100020182,JA01,2.05
12/04/2019,Academy Management,AMZNMKTPLA,16.99,Standard Equipment,AMZNMKTPLACE AMAZON.CO.UK,Misc. Spec,192001,0100020250,HA01,0.00
14/04/2019,Academy Management,AMZNMKTPLA,26.49,Standard Equipment,AMZNMKTPLACE AMAZON.CO.UK,Misc. Spec,192001,0100020251,HA01,0.00
14/04/2019,Academy Management,AMZNMKTPLA,36.61,Standard Equipment,AMZNMKTPLACE AMAZON.CO.UK,Misc. Spec,192001,0100020252,HA01,3.33
16/04/2019,Academy Management,LYRECO UK,1.17,Cleaning/Kitchen Equipment,PK12 TEA SPOON,Stationery,192001,0100020191,HA03,0.23
16/04/2019,Academy Management,LYRECO UK,21.14,Provisions Purchase,BX200 NESCAFE ORIGINAL SACHET,Stationery,192001,0100020191,HH01,0.00
16/04/2019,Academy Management,LYRECO UK,3.23,Printing/Stationery/Photocopy,PK4 POST-IT 683-4 INDEX 12X44MM STD COL,Stationery,192001,0100020191,JA01,0.65
16/04/2019,Academy Management,LYRECO UK,0.85,Printing/Stationery/Photocopy,BX1000 LYRECO STANDARD 23/17 STAPLES,Stationery,192001,0100020191,JA01,0.17
16/04/2019,Academy Management,LYRECO UK,7.45,Printing/Stationery/Photocopy,LYRECO HD100 HEAVY-DUTY STAPLER BLACK,Stationery,192001,0100020191,JA01,1.49
16/04/2019,Academy Management,LYRECO UK,8.00,Printing/Stationery/Photocopy,LYRECO MYLAR TAB DIVIDER WH 1-10,Stationery,192001,0100020191,JA01,1.60
16/04/2019,Academy Management,LYRECO UK,6.00,Printing/Stationery/Photocopy,LYRECO PREM GEL INK PEN W/GRIP 0.7MM BLK,Stationery,192001,0100020191,JA01,1.20
16/04/2019,Academy Management,LYRECO UK,6.51,Printing/Stationery/Photocopy,BX125 LYRECO B/B ENV 115G C4,Stationery,192001,0100020191,JA01,1.30
24/04/2019,Academy Management,THRIFTY CA,400.03,Hired Transport,Hired Transport,Thrify Ren,192001,0100020262,FD01,0.00
25/04/2019,Academy Management,Amazon Pri,6.66,Standard Equipment,Amazon Prime*MZ7OO9II4,Continuous,192001,0100020253,HA01,1.33
29/04/2019,Academy Management,Amazon Pri,-9.32,Standard Equipment,Amazon Prime,Continuous,192001,0100020517,HA01,1.33
30/04/2019,Academy Management,VIVA BRAZI,183.60,Catering/Refreshments,VIVA BRAZIL CARDIFF,Restaurant,192001,0100020411,FD76,0.00
11/04/2019,Community Safety Prevention,LYRECO UK,5.55,Printing/Stationery/Photocopy,LYRECO LETTER TRAY BLUE,Stationery,192001,0100020185,JA01,1.11
11/04/2019,Community Safety Prevention,LYRECO UK,0.36,Printing/Stationery/Photocopy,BX1000 LYRECO 26/6 STAPLES,Stationery,192001,0100020185,JA01,0.08
11/04/2019,Community Safety Prevention,LYRECO UK,0.60,Printing/Stationery/Photocopy,PK4 LYRECO INDEX PAPIER 20X38MM ASSTD,Stationery,192001,0100020185,JA01,0.12
11/04/2019,Community Safety Prevention,LYRECO UK,3.84,Printing/Stationery/Photocopy,PK12 LYRECO REPO NOTE 51X38BRILLIANT COL,Stationery,192001,0100020185,JA01,0.76
11/04/2019,Community Safety Prevention,LYRECO UK,0.71,Printing/Stationery/Photocopy,BOSTIK BLU-TACK ECONOMY PACK,Stationery,192001,0100020185,JA01,0.15
11/04/2019,Community Safety Prevention,LYRECO UK,3.93,Printing/Stationery/Photocopy,VELCRO HOOK AND LOOP 5M,Stationery,192001,0100020185,JA01,0.78
11/04/2019,Community Safety Prevention,LYRECO UK,9.70,Printing/Stationery/Photocopy,PK250 LYRECO ENV 90G C4 S/S WH,Stationery,192001,0100020185,JA01,1.94
11/04/2019,Community Safety Prevention,Amazon.co.,39.81,Publications/Subscriptions,Amazon.co.uk*MZ33O1MH4,Direct Sal,192001,0100020125,JA04,0.00
13/04/2019,Community Safety Prevention,Amazon Pri,6.66,Standard Equipment,Amazon Prime*MZ51V9H04,Continuous,192001,0100020126,HA01,1.33
14/04/2019,Community Safety Prevention,AMZNMktpla,23.99,Standard Equipment,AMZNMktplace,Misc. Spec,192001,0100020127,HA01,0.00
17/04/2019,Community Safety Prevention,AMZNMktpla,4.26,Standard Equipment,AMZNMktplace,Misc. Spec,192001,0100020128,HA01,0.84
18/04/2019,Community Safety Prevention,DIGITAL ID,25.13,ICT Application Services (Oth),DIGITAL ID,"Computers,",192001,0100020217,HA22,0.00
24/04/2019,Community Safety Prevention,THRIFTY CA,292.82,Hired Transport,Hired Transport,Thrify Ren,192001,0100020258,FD01,26.62
24/04/2019,Community Safety Prevention,THRIFTY CA,403.48,Hired Transport,Hired Transport,Thrify Ren,192001,0100020258,FD01,36.68
24/04/2019,Community Safety Prevention,THRIFTY CA,341.88,Hired Transport,Hired Transport,Thrify Ren,192001,0100020258,FD01,31.08
24/04/2019,Community Safety Prevention,AMZNMKTPLA,18.76,Standard Equipment,AMZNMKTPLACE AMAZON.CO.UK,Misc. Spec,192001,0100020129,HA01,3.75
24/04/2019,Community Safety Prevention,DEVON COUN,60.00,Standard Equipment,DEVON COUNTY AGRICTRL ASS,Theaters a,192001,0100020130,HA01,0.00
25/04/2019,Community Safety Prevention,LYRECO UK,1.50,Printing/Stationery/Photocopy,FOCUS BALL PEN MEDIUM RED,Stationery,192001,0100020200,JA01,0.30
25/04/2019,Community Safety Prevention,LYRECO UK,1.50,Printing/Stationery/Photocopy,FOCUS BALL PEN MEDIUM GREEN,Stationery,192001,0100020200,JA01,0.30
25/04/2019,Community Safety Prevention,LYRECO UK,1.50,Printing/Stationery/Photocopy,MICRON B/POINT PEN MED BLU,Stationery,192001,0100020200,JA01,0.30
25/04/2019,Community Safety Prevention,LYRECO UK,11.90,Printing/Stationery/Photocopy,FELLOWES PLUSH TOUCH WRISTREST FOAM BLK,Stationery,192001,0100020200,JA01,2.38
25/04/2019,Community Safety Prevention,LYRECO UK,0.30,Printing/Stationery/Photocopy,WEDGE METAL PENCIL SHARPENER,Stationery,192001,0100020200,JA01,0.06
26/04/2019,Community Safety Prevention,TESCO STOR,6.60,Catering/Refreshments,TESCO STORES 5663,Grocery St,192001,0100020576,FD76,0.00
30/04/2019,Community Safety Prevention,BRITANNIA,19.90,Catering/Refreshments,BRITANNIA HOTEL,"Hotels, Mo",192001,0100020375,FD76,0.00
30/04/2019,Community Safety Prevention,BRITANNIA,128.00,Hotel Booking,BRITANNIA HOTEL,"Hotels, Mo",192001,0100020374,FD77,0.00
01/04/2019,CS Protection,LAND REGIS,6.00,External Prof Support/Advice,LAND REGISTRY search,Government,192001,0100020155,HJ02,0.00
05/04/2019,CS Protection,POST OFFIC,2.70,Postages,POST OFFICE COUNTER,Postage St,192001,0100020216,JA05,0.00
04/04/2019,Finance,LYRECO UK,6.17,Printing/Stationery/Photocopy,PK500 LYRECO ENV DL 100G P/S W/WIN WH,Stationery,192001,0100020179,JA01,1.23
10/04/2019,Finance,LYRECO UK,11.91,Printing/Stationery/Photocopy,RL260X2 DYMO ADDRESS LABEL 89X36MM WH,Stationery,192001,0100020184,JA01,2.38
24/04/2019,Finance,LYRECO UK,11.91,Printing/Stationery/Photocopy,RL260X2 DYMO ADDRESS LABEL 89X36MM WH,Stationery,192001,0100020196,JA01,2.38
26/04/2019,Finance,LYRECO UK,0.26,Printing/Stationery/Photocopy,SHATTER RESISTANT RULER 12 /30,Stationery,192001,0100020437,JA01,0.05
"39,864.89",,,,,,
